fUST/lending_fUST_20250514
["ID","MTS","AMOUNT","RATE_DAILY","PERIOD"]
[360975417,1747175448754,-400.0,0.00013698,2]
[360975418,1747175448764,-419.51,0.00013698,2]
[360975419,1747175448774,-1260.33,0.00013698,2]
[360975420,1747175448785,-460.3,0.00013698,2]
[360975421,1747175448794,-975.21,0.00013698,2]
[360975422,1747175448804,-400.0,0.00013698,2]
[360975423,1747175448814,-400.0,0.00013698,2]
[360975424,1747175448825,-422.85,0.00013698,2]
[360975425,1747175448835,-821.43,0.00013698,2]
[360975426,1747175448844,-400.0,0.00013698,2]
[360975427,1747175448854,-1786.67,0.00013698,2]
[360975428,1747175448864,-424.06408313,0.00013698,2]
[360975429,1747175448874,-400.0,0.00013698,2]
[360975430,1747175448884,-856.34,0.00013698,2]
[360975431,1747175448894,-469.06,0.00013698,2]
[360975432,1747175448904,-400.0,0.00013698,2]
[360975433,1747175448914,-3269.34,0.00013698,2]
[360975434,1747175448923,-400.0,0.00013698,2]
[360975435,1747175448933,-400.0,0.00013698,2]
[360975436,1747175448943,-400.0,0.00013698,2]
[360975437,1747175448953,-1178.3,0.00013698,2]
[360975438,1747175448963,-400.0,0.00013698,2]
[360975439,1747175448972,-400.0,0.00013698,2]
[360975440,1747175448981,-400.0,0.00013698,2]
[360975441,1747175448991,-400.0,0.00013698,2]
[360975442,1747175449001,-873.5,0.00013698,2]
[360975443,1747175449010,-400.0,0.00013698,2]
[360975444,1747175449021,-758.85,0.00013698,2]
[360975445,1747175449033,-2151.0,0.00013698,2]
[360975446,1747175449043,-1127.87,0.00013698,2]
[360975447,1747175449052,-404.91,0.00013698,2]
[360975448,1747175449063,-400.0,0.00013698,2]
[360975449,1747175449072,-400.0,0.00013698,2]
[360975450,1747175449082,-455.64,0.00013698,2]
[360975451,1747175449092,-400.0,0.00013698,2]
[360975452,1747175449103,-1766.77,0.00013698,2]
[360975453,1747175449113,-533.33,0.00013698,2]
[360975454,1747175449125,-4784.71,0.00013698,2]
[360975455,1747175449135,-870.32,0.00013698,2]
[360975456,1747175449147,-1953.95,0.00013698,2]
[360975457,1747175449156,-400.0,0.00013698,2]
[360975458,1747175449166,-500.0,0.00013698,2]
[360975459,1747175449176,-7658.84,0.00013698,2]
[360975460,1747175449186,-400.0,0.00013698,2]
[360975461,1747175449196,-400.0,0.00013698,2]
[360975462,1747175449206,-400.0,0.00013698,2]
[360975463,1747175449215,-400.0,0.00013698,2]
[360975464,1747175449225,-877.85,0.00013698,2]
[360975465,1747175449235,-400.0,0.00013698,2]
[360975466,1747175449244,-400.0,0.00013698,2]
[360975467,1747175449254,-400.0,0.00013698,2]
[360975468,1747175449265,-1015.37,0.00013698,2]
[360975469,1747175449274,-496.7,0.00013698,2]
[360975470,1747175449283,-400.0,0.00013698,2]
[360975471,1747175449294,-409.32,0.00013698,2]
[360975472,1747175449303,-425.79,0.00013698,2]
[360975473,1747175449313,-400.0,0.00013698,2]
[360975474,1747175449323,-2542.01,0.00013698,2]
[360975475,1747175449332,-1762.62,0.00013698,2]
[360975476,1747175449341,-400.0,0.00013698,2]
[360975477,1747175449351,-400.0,0.00013698,2]
[360975478,1747175449361,-2220.19,0.00013698,2]
[360975479,1747175449371,-400.0,0.00013698,2]
[360975480,1747175449384,-400.0,0.00013698,2]
[360975481,1747175449394,-400.0,0.00013698,2]
[360975482,1747175449404,-465.96,0.00013698,2]
[360975483,1747175449414,-431.31,0.00013698,2]
[360975484,1747175449424,-400.0,0.00013698,2]
[360975485,1747175449433,-400.0,0.00013698,2]
[360975486,1747175449443,-400.0,0.00013698,2]
[360975487,1747175449452,-1343.16,0.00013698,2]
[360975488,1747175449462,-419.1,0.00013698,2]
[360975489,1747175449472,-1114.75,0.00013698,2]
[360975490,1747175449482,-575.16,0.00013698,2]
[360975491,1747175449491,-1048.65,0.00013698,2]
[360975492,1747175449500,-400.0,0.00013698,2]
[360975493,1747175449510,-1904.15,0.00013698,2]
[360975494,1747175449519,-400.0,0.00013698,2]
[360975495,1747175449528,-511.71,0.00013698,2]
[360975496,1747175449538,-610.11,0.00013698,2]
[360975497,1747175449548,-400.0,0.00013698,2]
[360975498,1747175449558,-400.0,0.00013698,2]
[360975499,1747175449567,-400.0,0.00013698,2]
[360975500,1747175449577,-400.0,0.00013698,2]
[360975501,1747175449587,-513.91,0.00013698,2]
[360975502,1747175449597,-577.84,0.00013698,2]
[360975503,1747175449607,-400.0,0.00013698,2]
[360975504,1747175449617,-2780.46,0.00013698,2]
[360975505,1747175449629,-400.0,0.00013698,2]
[360975506,1747175449639,-558.08,0.00013698,2]
[360975507,1747175449650,-400.0,0.00013698,2]
[360975508,1747175449660,-400.0,0.00013698,2]
[360975509,1747175449671,-400.0,0.00013698,2]
[360975510,1747175449681,-291.02,0.00013698,2]
[360975511,1747175449692,-417.61,0.00013698,2]
[360975512,1747175449702,-441.58,0.00013698,2]
[360975513,1747175449713,-400.0,0.00013698,2]
[360975514,1747175449723,-400.0,0.00013698,2]
[360975515,1747175449733,-400.0,0.00013698,2]
[360975516,1747175449743,-401.93,0.00013698,2]
[360975517,1747175449753,-690.81,0.00013698,2]
[360975518,1747175449763,-1144.96,0.00013698,2]
[360975519,1747175449774,-400.0,0.00013698,2]
[360975520,1747175449783,-400.0,0.00013698,2]
[360975521,1747175449794,-774.08,0.00013698,2]
[360975522,1747175449804,-1320.88,0.00013698,2]
[360975523,1747175449814,-4495.41,0.00013698,2]
[360975524,1747175449823,-720.34,0.00013698,2]
[360975525,1747175449833,-1794.11,0.00013698,2]
[360975526,1747175449843,-400.0,0.00013698,2]
[360975527,1747175449853,-400.0,0.00013698,2]
[360975528,1747175449864,-400.0,0.00013698,2]
[360975529,1747175449874,-400.0,0.00013698,2]
[360975530,1747175449888,-400.0,0.00013698,2]
[360975531,1747175449897,-400.0,0.00013698,2]
[360975532,1747175449907,-400.0,0.00013698,2]
[360975533,1747175449917,-1869.27,0.00013698,2]
[360975534,1747175449928,-400.0,0.00013698,2]
[360975535,1747175449938,-400.0,0.00013698,2]
[360975536,1747175449947,-1335.99,0.00013698,2]
[360975537,1747175449956,-400.0,0.00013698,2]
[360975538,1747175449966,-400.0,0.00013698,2]
[360975539,1747175449975,-677.4,0.00013698,2]
[360975540,1747175449986,-400.0,0.00013698,2]
[360975541,1747175449995,-400.0,0.00013698,2]
[360975542,1747175450005,-753.16,0.00013698,2]
[360975543,1747175450014,-400.0,0.00013698,2]
[360975544,1747175450027,-400.0,0.00013698,2]
[360975545,1747175450037,-1064.22,0.00013698,2]
[360975546,1747175450047,-545.11,0.00013698,2]
[360975547,1747175450056,-400.0,0.00013698,2]
[360975548,1747175450066,-325.09333378,0.00013698,2]
[360975549,1747175450075,-400.0,0.00013698,2]
[360975550,1747175450085,-938.5,0.00013698,2]
[360975551,1747175450095,-400.0,0.00013698,2]
[360975552,1747175450107,-453.12,0.00013698,2]
[360975553,1747175450117,-400.0,0.00013698,2]
[360975554,1747175450127,-400.0,0.00013698,2]
[360975555,1747175450137,-207.492885,0.00013699,2]
[360975556,1747175450147,-823.120415,0.00013699,2]
[360975557,1747175450157,-830.38323777,0.00013735,2]
[360975558,1747175450167,-251.68563358,0.0001378,2]
[360975559,1747175450176,-500.0,0.000138,2]
[360975560,1747175450186,-4156.79573613,0.000138,2]
[360975561,1747175450196,-830.38323777,0.00013804,2]
[360975562,1747175450206,-830.38323777,0.00013872,2]
[360975563,1747175450215,-1000.0,0.000139,2]
[360975564,1747175450224,-587.0,0.00013921,2]
[360975565,1747175450234,-45425.65458434,0.00013972,2]
[360975566,1747175450243,-7063.8909327,0.00013972,3]
[360975567,1747175450253,-489.85,0.00013972,2]
[360975568,1747175450263,-400.0,0.00013972,2]
[360975569,1747175450273,-400.0,0.00013972,2]
[360975570,1747175450283,-400.0,0.00013972,2]
[360975571,1747175450293,-400.0,0.00013972,2]
[360975572,1747175450303,-400.0,0.00013972,2]
[360975573,1747175450312,-400.0,0.00013972,2]
[360975574,1747175450323,-400.0,0.00013972,2]
[360975575,1747175450333,-400.0,0.00013972,2]
[360975576,1747175450343,-400.0,0.00013972,2]
[360975577,1747175450353,-400.0,0.00013972,2]
[360975578,1747175450362,-400.0,0.00013972,2]
[360975579,1747175450372,-400.0,0.00013972,2]
[360975580,1747175450382,-400.0,0.00013972,2]
[360975581,1747175450392,-400.0,0.00013972,2]
[360975582,1747175450403,-400.0,0.00013972,2]
[360975583,1747175450413,-400.0,0.00013972,2]
[360975584,1747175450422,-400.0,0.00013972,2]
[360975585,1747175450432,-400.0,0.00013972,2]
[360975586,1747175450443,-400.0,0.00013972,2]
[360975587,1747175450453,-400.0,0.00013972,2]
[360975588,1747175450463,-400.0,0.00013972,2]
[360975589,1747175450473,-400.0,0.00013972,2]
[360975590,1747175450483,-693.93,0.00013972,2]
[360975591,1747175450492,-400.0,0.00013972,2]
[360975592,1747175450502,-400.0,0.00013972,2]
[360975593,1747175450512,-400.0,0.00013972,2]
[360975594,1747175450522,-400.0,0.00013972,2]
[360975595,1747175450531,-400.0,0.00013972,2]
[360975596,1747175450542,-400.0,0.00013972,2]
[360975597,1747175450551,-400.0,0.00013972,2]
[360975598,1747175450561,-400.0,0.00013972,2]
[360975599,1747175450571,-400.0,0.00013972,2]
[360975600,1747175450581,-400.0,0.00013972,2]
[360975601,1747175450591,-400.0,0.00013972,2]
[360975602,1747175450601,-503.03,0.00013972,2]
[360975603,1747175450610,-400.0,0.00013972,2]
[360975604,1747175450621,-400.0,0.00013972,2]
[360975605,1747175450632,-400.0,0.00013972,2]
[360975606,1747175450642,-400.0,0.00013972,2]
[360975607,1747175450653,-400.0,0.00013972,2]
[360975608,1747175450663,-400.0,0.00013972,2]
[360975609,1747175450673,-400.0,0.00013972,2]
[360975610,1747175450684,-414.66,0.00013972,2]
[360975611,1747175450694,-400.0,0.00013972,2]
[360975612,1747175450705,-400.0,0.00013972,2]
[360975613,1747175450715,-540.02,0.00013972,2]
[360975614,1747175450726,-400.0,0.00013972,2]
[360975615,1747175450736,-400.0,0.00013972,2]
[360975616,1747175450746,-400.0,0.00013972,2]
[360975617,1747175450755,-400.0,0.00013972,2]
[360975618,1747175450765,-777.24,0.00013972,2]
[360975619,1747175450774,-400.0,0.00013972,2]
[360975620,1747175450784,-400.0,0.00013972,2]
[360975621,1747175450793,-400.0,0.00013972,2]
[360975622,1747175450803,-519.56,0.00013972,2]
[360975623,1747175450813,-400.0,0.00013972,2]
[360975624,1747175450822,-400.0,0.00013972,2]
[360975625,1747175450832,-400.0,0.00013972,2]
[360975626,1747175450842,-507.63,0.00013972,2]
[360975627,1747175450852,-400.0,0.00013972,2]
[360975628,1747175450862,-400.0,0.00013972,2]
[360975629,1747175450871,-400.0,0.00013972,2]
[360975630,1747175450883,-400.0,0.00013972,2]
[360975631,1747175450892,-400.0,0.00013972,2]
[360975632,1747175450902,-605.65,0.00013972,2]
[360975633,1747175450912,-400.0,0.00013972,2]
[360975634,1747175450922,-400.0,0.00013972,2]
[360975635,1747175450931,-447.34,0.00013972,2]
[360975636,1747175450941,-400.0,0.00013972,2]
[360975637,1747175450951,-1193.96,0.00013972,2]
[360975638,1747175450960,-400.0,0.00013972,2]
[360975639,1747175450970,-400.0,0.00013972,2]
[360975640,1747175450979,-400.0,0.00013972,2]
[360975641,1747175450988,-400.0,0.00013972,2]
[360975642,1747175450998,-400.0,0.00013972,2]
[360975643,1747175451008,-400.0,0.00013972,2]
[360975644,1747175451018,-1442.83,0.00013972,2]
[360975645,1747175451032,-400.0,0.00013972,2]
[360975646,1747175451042,-400.0,0.00013972,2]
[360975647,1747175451052,-400.0,0.00013972,2]
[360975648,1747175451062,-400.0,0.00013972,2]
[360975649,1747175451072,-400.0,0.00013972,2]
[360975650,1747175451081,-400.0,0.00013972,2]
[360975651,1747175451091,-400.0,0.00013972,2]
[360975652,1747175451102,-400.0,0.00013972,2]
[360975653,1747175451111,-400.0,0.00013972,2]
[360975654,1747175451121,-400.0,0.00013972,2]
[360975655,1747175451132,-400.0,0.00013972,2]
[360975656,1747175451141,-400.0,0.00013972,2]
[360975657,1747175451151,-400.0,0.00013972,2]
[360975658,1747175451161,-531.11,0.00013972,2]
[360975659,1747175451170,-400.0,0.00013972,2]
[360975660,1747175451180,-400.0,0.00013972,2]
[360975661,1747175451190,-1058.4,0.00013972,2]
[360975662,1747175451200,-448.8,0.00013972,2]
[360975663,1747175451375,-403.72,0.00013972,2]
[360975664,1747175451386,-400.0,0.00013972,2]
[360975665,1747175451396,-698.8,0.00013972,2]
[360975666,1747175451407,-400.0,0.00013972,2]
[360975667,1747175451417,-472.82,0.00013972,2]
[360975668,1747175451427,-324.06606316,0.00013972,2]
[360975669,1747175451463,-588.48393684,0.00013972,2]
[360975670,1747175451473,-400.0,0.00013972,2]
[360975671,1747175451484,-400.0,0.00013972,2]
[360975672,1747175451494,-400.0,0.00013972,2]
[360975673,1747175451504,-759.13,0.00013972,2]
[360975674,1747175451515,-423.11,0.00013972,2]
[360975675,1747175451524,-616.93,0.00013972,2]
[360975676,1747175451538,-400.0,0.00013972,2]
[360975677,1747175451547,-400.0,0.00013972,2]
[360975678,1747175451557,-400.0,0.00013972,2]
[360975679,1747175451568,-739.65,0.00013972,2]
[360975680,1747175451577,-400.0,0.00013972,2]
[360975681,1747175451587,-400.0,0.00013972,2]
[360975682,1747175451597,-698.69,0.00013972,2]
[360975683,1747175451607,-400.0,0.00013972,2]
[360975684,1747175451617,-1603.75,0.00013972,2]
[360975685,1747175451628,-400.0,0.00013972,2]
[360975686,1747175451638,-460.52,0.00013972,2]
[360975687,1747175451648,-9946.71,0.00013972,2]
[360975688,1747175451661,-400.0,0.00013972,2]
[360975689,1747175451671,-618.99702286,0.00013972,2]
[360975725,1747176428124,-414.38941588,0.0001241,2]
[360975726,1747176442157,-4585.61058412,0.0001241,2]
[360975727,1747176442180,-1451.02518033,0.00012535,2]
[360976044,1747176638382,-2992.2087682,0.00012163,2]
[360977169,1747177101686,10000.0,0.00014,30]
[360977170,1747177115314,1122.67,0.00014,30]
[360977183,1747177652152,-603.66357644,0.00011822,2]
[360977195,1747177825922,1000.0,0.00012,7]
[360977274,1747177838594,-3670.70435593,0.00011722,2]
[360977911,1747177846764,-17528.53429322,0.00011722,2]
[360977913,1747177846774,-500.0,0.00011821,2]
[360977915,1747177846788,-500.0,0.00011821,2]
[360977917,1747177846799,-500.0,0.00011821,2]
[360977919,1747177846809,-500.0,0.00011821,2]
[360977921,1747177846820,-500.0,0.00011821,2]
[360977923,1747177846831,-438.44149098,0.00011821,2]
[360977925,1747177846841,-311.8317173,0.00011821,2]
[360977927,1747177846851,-500.0,0.00011821,2]
[360977929,1747177846861,-5000.0,0.00011822,2]
[360977932,1747177846873,-753.064678,0.00011941,2]
[360977934,1747177846884,-570.0011998,0.00012281,2]
[360977936,1747177846894,-652.61296533,0.00012299,2]
[360977938,1747177846904,-1200.0,0.00012384,2]
[360977940,1747177846915,-500.0,0.00012385,2]
[360977942,1747177846925,-500.0,0.00012385,2]
[360977944,1747177846936,-500.0,0.00012385,2]
[360977946,1747177846949,-500.0,0.00012385,2]
[360977948,1747177846959,-500.0,0.00012385,2]
[360977950,1747177846969,-500.0,0.00012385,2]
[360977952,1747177846979,-599.2788703,0.00012385,2]
[360977954,1747177846990,-500.0,0.00012385,2]
[360977956,1747177847000,-500.0,0.00012385,2]
[360977958,1747177847010,-500.0,0.00012385,2]
[360977960,1747177847020,-500.0,0.00012385,2]
[360977962,1747177847030,-500.0,0.00012385,2]
[360977965,1747177847040,-467.67839646,0.00012385,2]
[360977968,1747177847052,-500.0,0.00012385,2]
[360977970,1747177847062,-500.0,0.00012385,2]
[360977972,1747177847072,-232.01984714,0.00012385,2]
[360977974,1747177847082,-500.0,0.00012385,2]
[360977976,1747177847092,-500.0,0.00012385,2]
[360977978,1747177847102,-286.11010363,0.00012385,2]
[360977980,1747177847112,-323.94390393,0.00012385,2]
[360977982,1747177847122,-500.0,0.00012385,2]
[360977985,1747177847133,-500.0,0.00012385,2]
[360977987,1747177847143,-500.0,0.00012385,2]
[360977989,1747177847153,-438.48695089,0.00012385,2]
[360977991,1747177847163,-500.0,0.00012385,2]
[360977993,1747177847172,-2788.9055975,0.00012388,2]
[360977995,1747177847184,-560.4971712,0.00012562,2]
[360977997,1747177847196,-230.83011916,0.00012732,2]
[360977999,1747177847207,-500.0,0.0001345,2]
[360978001,1747177847218,-604.68118269,0.0001346,2]
[360978003,1747177847229,-1330.03986708,0.00013598,2]
[360978005,1747177847239,-12080.30758065,0.000136,2]
[360978007,1747177847250,-12080.30758055,0.000136,2]
[360978009,1747177847260,-12080.30758055,0.000136,2]
[360978011,1747177847271,-1330.03986707,0.00013667,2]
[360978013,1747177847282,-200.0,0.0001369,2]
[360978015,1747177847292,-151.0,0.00013698,2]
[360978017,1747177847302,-151.0,0.00013698,2]
[360978019,1747177847313,-151.0,0.00013698,2]
[360978021,1747177847323,-400.0,0.00013698,2]
[360978023,1747177847334,-400.0,0.00013698,2]
[360978025,1747177847345,-400.0,0.00013698,2]
[360978027,1747177847355,-565.52,0.00013698,2]
[360978030,1747177847367,-400.0,0.00013698,2]
[360978032,1747177847377,-400.0,0.00013698,2]
[360978034,1747177847388,-151.0,0.00013698,2]
[360978036,1747177847398,-400.0,0.00013698,2]
[360978038,1747177847409,-151.0,0.00013698,2]
[360978040,1747177847419,-573.02,0.00013698,2]
[360978042,1747177847429,-400.0,0.00013698,2]
[360978044,1747177847439,-151.0,0.00013698,2]
[360978046,1747177847451,-400.0,0.00013698,2]
[360978048,1747177847461,-400.0,0.00013698,2]
[360978050,1747177847472,-151.0,0.00013698,2]
[360978053,1747177847483,-151.0,0.00013698,2]
[360978055,1747177847493,-400.0,0.00013698,2]
[360978057,1747177847503,-535.38515361,0.00013698,2]
[360978059,1747177847513,-400.0,0.00013698,2]
[360978061,1747177847523,-401.63,0.00013698,2]
[360978063,1747177847534,-151.0,0.00013698,2]
[360978065,1747177847544,-151.0,0.00013698,2]
[360978067,1747177847555,-151.0,0.00013698,2]
[360978068,1747177847565,-151.0,0.00013698,2]
[360978069,1747177847576,-151.0,0.00013698,2]
[360978070,1747177847586,-151.0,0.00013698,2]
[360978071,1747177847596,-151.0,0.00013698,2]
[360978072,1747177847607,-187.05691,0.00013698,2]
[360978073,1747177847617,-400.0,0.00013698,2]
[360978074,1747177847627,-287.8,0.00013698,2]
[360978075,1747177847638,-152.59,0.00013698,2]
[360978076,1747177847648,-400.0,0.00013698,2]
[360978077,1747177847659,-249.0,0.00013698,2]
[360978078,1747177847669,-690.33,0.00013698,2]
[360978079,1747177847680,-400.0,0.00013698,2]
[360978080,1747177847690,-151.0,0.00013698,2]
[360978081,1747177847702,-151.0,0.00013698,2]
[360978082,1747177847714,-151.0,0.00013698,2]
[360978083,1747177847724,-151.0,0.00013698,2]
[360978084,1747177847735,-400.0,0.00013698,2]
[360978085,1747177847745,-522.39,0.00013698,2]
[360978087,1747177847755,-467.8149311,0.00013698,2]
[360978089,1747177847764,-400.0,0.00013698,2]
[360978091,1747177847775,-449.03,0.00013698,2]
[360978093,1747177847789,-151.0,0.00013698,2]
[360978095,1747177847799,-151.0,0.00013698,2]
[360978097,1747177847810,-712.47,0.00013698,2]
[360978099,1747177847820,-400.0,0.00013698,2]
[360978101,1747177847832,-151.0,0.00013698,2]
[360978103,1747177847842,-151.0,0.00013698,2]
[360978105,1747177847853,-400.0,0.00013698,2]
[360978107,1747177847864,-400.0,0.00013698,2]
[360978110,1747177847874,-400.0,0.00013698,2]
[360978112,1747177847884,-400.0,0.00013698,2]
[360978114,1747177847894,-400.0,0.00013698,2]
[360978116,1747177847904,-400.0,0.00013698,2]
[360978118,1747177847914,-400.0,0.00013698,2]
[360978120,1747177847924,-400.0,0.00013698,2]
[360978122,1747177847934,-400.0,0.00013698,2]
[360978124,1747177847945,-461.11,0.00013698,2]
[360978126,1747177847955,-400.0,0.00013698,2]
[360978128,1747177847966,-400.0,0.00013698,2]
[360978130,1747177847976,-400.0,0.00013698,2]
[360978132,1747177847986,-400.0,0.00013698,2]
[360978135,1747177847996,-400.0,0.00013698,2]
[360978137,1747177848006,-400.0,0.00013698,2]
[360978139,1747177848016,-400.0,0.00013698,2]
[360978141,1747177848027,-400.0,0.00013698,2]
[360978143,1747177848037,-346.08499314,0.00013698,2]
[360978145,1747177848047,-400.0,0.00013698,2]
[360978147,1747177848058,-400.0,0.00013698,2]
[360978149,1747177848068,-400.0,0.00013698,2]
[360978151,1747177848079,-400.0,0.00013698,2]
[360978153,1747177848088,-400.0,0.00013698,2]
[360978155,1747177848099,-400.0,0.00013698,2]
[360978158,1747177848109,-400.0,0.00013698,2]
[360978160,1747177848120,-476.26,0.00013698,2]
[360978162,1747177848132,-400.0,0.00013698,2]
[360978164,1747177848142,-400.0,0.00013698,2]
[360978166,1747177848153,-492.86178097,0.00013698,2]
[360978168,1747177848163,-400.0,0.00013698,2]
[360978170,1747177848174,-400.0,0.00013698,2]
[360978172,1747177848184,-400.0,0.00013698,2]
[360978175,1747177848197,-555.18,0.00013698,2]
[360978177,1747177848208,-636.1,0.00013698,2]
[360978179,1747177848219,-400.0,0.00013698,2]
[360978181,1747177848230,-400.0,0.00013698,2]
[360978183,1747177848241,-400.0,0.00013698,2]
[360978212,1747177848253,-400.0,0.00013698,2]
[360978214,1747177848528,-400.0,0.00013698,2]
[360978217,1747177848539,-465.33,0.00013698,2]
[360978219,1747177848548,-400.0,0.00013698,2]
[360978221,1747177848558,-214.70914688,0.00013698,2]
[360978223,1747177848568,-400.0,0.00013698,2]
[360978225,1747177848578,-151.0,0.00013698,2]
[360978227,1747177848588,-151.0,0.00013698,2]
[360978229,1747177848598,-400.0,0.00013698,2]
[360978231,1747177848608,-400.0,0.00013698,2]
[360978233,1747177848618,-400.0,0.00013698,2]
[360978235,1747177848628,-400.0,0.00013698,2]
[360978237,1747177848638,-400.0,0.00013698,2]
[360978239,1747177848647,-400.0,0.00013698,2]
[360978241,1747177848657,-400.0,0.00013698,2]
[360978243,1747177848667,-1094.46,0.00013698,2]
[360978245,1747177848678,-939.57,0.00013698,2]
[360978247,1747177848687,-151.0,0.00013698,2]
[360978249,1747177848699,-666.61,0.00013698,2]
[360978251,1747177848709,-400.0,0.00013698,2]
[360978253,1747177848720,-400.0,0.00013698,2]
[360978256,1747177848729,-400.0,0.00013698,2]
[360978258,1747177848739,-151.0,0.00013698,2]
[360978260,1747177848748,-1322.6,0.00013698,2]
[360978262,1747177848758,-400.0,0.00013698,2]
[360978264,1747177848768,-400.0,0.00013698,2]
[360978266,1747177848779,-400.0,0.00013698,2]
[360978268,1747177848791,-151.0,0.00013698,2]
[360978270,1747177848801,-151.0,0.00013698,2]
[360978272,1747177848811,-400.0,0.00013698,2]
[360978274,1747177848820,-405.7,0.00013698,2]
[360978276,1747177848830,-151.0,0.00013698,2]
[360978278,1747177848840,-400.0,0.00013698,2]
[360978280,1747177848850,-400.0,0.00013698,2]
[360978282,1747177848860,-400.0,0.00013698,2]
[360978284,1747177848870,-294.27659659,0.00013698,2]
[360978286,1747177848880,-400.0,0.00013698,2]
[360978288,1747177848890,-400.0,0.00013698,2]
[360978290,1747177848899,-252.05579766,0.00013698,2]
[360978292,1747177848909,-836.51,0.00013698,2]
[360978294,1747177848919,-695.87,0.00013698,2]
[360978296,1747177848928,-400.0,0.00013698,2]
[360978298,1747177848938,-400.0,0.00013698,2]
[360978300,1747177848947,-151.0,0.00013698,2]
[360978302,1747177848957,-151.0,0.00013698,2]
[360978304,1747177848966,-433.42,0.00013698,2]
[360978306,1747177848976,-400.0,0.00013698,2]
[360978308,1747177848985,-970.2,0.00013698,2]
[360978310,1747177848995,-400.0,0.00013698,2]
[360978312,1747177849005,-400.0,0.00013698,2]
[360978314,1747177849015,-400.0,0.00013698,2]
[360978316,1747177849025,-400.0,0.00013698,2]
[360978318,1747177849034,-400.0,0.00013698,2]
[360978320,1747177849046,-563.99,0.00013698,2]
[360978322,1747177849056,-434.24,0.00013698,2]
[360978324,1747177849065,-400.0,0.00013698,2]
[360978327,1747177849076,-151.0,0.00013698,2]
[360978329,1747177849085,-400.0,0.00013698,2]
[360978331,1747177849095,-152.732534,0.00013698,2]
[360978333,1747177849105,-400.0,0.00013698,2]
[360978335,1747177849115,-690.25,0.00013698,2]
[360978337,1747177849126,-400.0,0.00013698,2]
[360978339,1747177849136,-400.0,0.00013698,2]
[360978341,1747177849146,-405.23,0.00013698,2]
[360978343,1747177849157,-678.01,0.00013698,2]
[360978345,1747177849167,-400.0,0.00013698,2]
[360978347,1747177849178,-1470.1,0.00013698,2]
[360978349,1747177849188,-400.0,0.00013698,2]
[360978351,1747177849198,-400.0,0.00013698,2]
[360978353,1747177849208,-151.0,0.00013698,2]
[360978355,1747177849219,-151.0,0.00013698,2]
[360978357,1747177849230,-400.0,0.00013698,2]
[360978359,1747177849240,-593.2,0.00013698,2]
[360978362,1747177849251,-3580.97,0.00013698,2]
[360978364,1747177849260,-400.0,0.00013698,2]
[360978365,1747177849271,-400.0,0.00013698,2]
[360978368,1747177849282,-400.0,0.00013698,2]